[Event "4NCL Div 1 2018-19"]
[Site "Telford"]
[Date "2019.02.10"]
[Round "6.24"]
[White "Frank, Tena"]
[Black "Kett, Tim"]
[Result "0-1"]
[ECO "A57"]
[WhiteElo "1947"]
[BlackElo "2206"]
[Annotator "NA"]
[PlyCount "72"]
[EventDate "2018.11.10"]
[EventType "team-tourn"]
[EventCountry "GBR"]
[SourceTitle "playchess.com"]
[Source "ChessBase"]
[SourceQuality "1"]
[TimeControl "40/6000+30:3000+30"]

1. d4 {[%emt 0:00:00]} Nf6 {[%emt 0:00:00]} 2. c4 {[%emt 0:00:00]} c5 {[%emt 0:00:01]} 3. d5 {[%emt 0:00:00]} b5 {[%emt 0:00:27]} 4. cxb5 {[%emt 0:00:16]} a6 {[%emt 0:00:11]} 5. f3 {[%emt 0:07:00]} e6 {[%emt 0:10:02]} 6. dxe6 {[%emt 0:07:08]} fxe6 {[%emt 0:00:26]} 7. e4 {[%emt 0:01:22]} Be7 {[%emt 0:20:40]} 8. e5 {[%emt 0:24:12]} Nd5 {[%emt 0:01:32]} 9. Nc3 {[%emt 0:03:17]} Nxc3 {[%emt 0:01:23]} 10. bxc3 {[%emt 0:00:06]} Qa5 {[%emt 0:08:08]} 11. Qb3 {[%emt 0:04:27]} axb5 {[%emt 0:08:31]} 12. Bxb5 {[%emt 0:01:47]} O-O {[%emt 0:03:00]} 13. Ne2 {[%emt 0:06:50]} Qc7 {[%emt 0:00:51]} 14. f4 {[%emt 0:02:48]} Nc6 {[%emt 0:01:00]} 15. O-O {[%emt 0:05:08]} Bb7 {[%emt 0:07:56]} 16. Be3 {[%emt 0:06:01]} Rf7 {[%emt 0:27:38]} 17. c4 {[%emt 0:28:48]} Raf8 {[%emt 0:01:43]} 18. Qc3 {[%emt 0:02:01]} Ba8 {[%emt 0:01:40]} 19. h3 {[%emt 0:03:11]} Qb7 {[%emt 0:01:50]} 20. Rf2 {[%emt 0:01:44]} Nxe5 {[%emt 0:04:44]} 21. Qxe5 {[%emt 0:01:31]} Bf6 {[%emt 0:00:19]} 22. Qxc5 {[%emt 0:00:04]} Bxa1 {[%emt 0:00:12]} 23. a4 {[%emt 0:01:12]} e5 {[%emt 0:01:57]} 24. a5 {[%emt 0:02:12]} exf4 {[%emt 0:00:49]} 25. Bd4 {[%emt 0:00:12]} Bxd4 {[%emt 0:00:54]} 26. Nxd4 {[%emt 0:00:34]} Qe4 {[%emt 0:00:48]} 27. Nf3 {[%emt 0:00:29]} Qe3 {[%emt 0:02:12]} 28. Qxe3 {[%emt 0:01:05]} fxe3 {[%emt 0:00:06]} 29. Re2 {[%emt 0:00:15]} Bxf3 {[%emt 0:00:09]} 30. gxf3 {[%emt 0:00:02]} Rxf3 {[%emt 0:00:10]} 31. Bxd7 {[%emt 0:00:52]} Rf1+ {[%emt 0:03:57]} 32. Kg2 {[%emt 0:00:04]} R1f2+ {[%emt 0:00:04]} 33. Rxf2 {[%emt 0:00:05]} Rxf2+ {[%emt 0:00:11]} 34. Kg1 {[%emt 0:00:53]} Ra2 {[%emt 0:01:12]} 35. c5 {[%emt 0:00:14]} Ra1+ {[%emt 0:00:18]} 36. Kg2 {[%emt 0:00:37]} e2 {[%emt 0:00:20]} 0-1

[Event "4NCL Div 1 2018-19"]
[Site "Telford"]
[Date "2019.02.10"]
[Round "6.25"]
[White "Buckley, David E"]
[Black "McKay, Roderick M"]
[Result "1-0"]
[ECO "D44"]
[WhiteElo "2247"]
[BlackElo "2309"]
[Annotator "NA"]
[PlyCount "61"]
[EventDate "2018.11.10"]
[EventType "team-tourn"]
[EventCountry "GBR"]
[SourceTitle "playchess.com"]
[Source "ChessBase"]
[SourceQuality "1"]
[TimeControl "40/6000+30:3000+30"]

1. d4 {[%emt 0:00:00]} d5 {[%emt 0:00:00]} 2. c4 {[%emt 0:00:00]} c6 {[%emt 0:00:00]} 3. Nc3 {[%emt 0:00:01]} Nf6 {[%emt 0:00:08]} 4. Nf3 {[%emt 0:00:20]} e6 {[%emt 0:00:30]} 5. Bg5 {[%emt 0:00:24]} dxc4 {[%emt 0:00:24]} 6. e4 {[%emt 0:00:25]} b5 {[%emt 0:00:17]} 7. e5 {[%emt 0:00:10]} h6 {[%emt 0:00:09]} 8. Bh4 {[%emt 0:00:06]} g5 {[%emt 0:00:06]} 9. Nxg5 {[%emt 0:00:24]} hxg5 {[%emt 0:00:13]} 10. Bxg5 {[%emt 0:00:03]} Nbd7 {[%emt 0:00:24]} 11. g3 {[%emt 0:00:51]} Qa5 {[%emt 0:04:31]} 12. exf6 {[%emt 0:03:00]} b4 {[%emt 0:00:42]} 13. Ne4 {[%emt 0:00:11]} Ba6 {[%emt 0:00:14]} 14. Qf3 {[%emt 0:05:57]} O-O-O {[%emt 0:03:30]} 15. Be2 {[%emt 0:02:40]} Nb8 {[%emt 0:05:49]} 16. Be3 {[%emt 0:05:04]} c5 {[%emt 0:11:07]} 17. dxc5 {[%emt 0:03:38]} b3+ {[%emt 0:34:30]} 18. Kf1 {[%emt 0:15:13]} bxa2 {[%emt 0:03:57]} 19. Kg2 {[%emt 0:09:05]} Bb7 {[%emt 0:05:58]} 20. Bxc4 {[%emt 0:04:30]} Qb4 {[%emt 0:05:24]} 21. Rhc1 {[%emt 0:10:02]} Nc6 {[%emt 0:11:20]} 22. Kg1 {[%emt 0:10:15]} Ne5 {[%emt 0:10:40]} 23. Qf4 {[%emt 0:02:08]} Nxc4 {[%emt 0:00:49]} 24. Rxc4 {[%emt 0:02:05]} Qxb2 {[%emt 0:00:48]} 25. Nd6+ {[%emt 0:05:33]} Bxd6 {[%emt 0:01:19]} 26. cxd6+ {[%emt 0:01:05]} Kb8 {[%emt 0:01:16]} 27. Bd4 {[%emt 0:04:07]} Qb1+ {[%emt 0:02:25]} 28. Rc1 {[%emt 0:00:37]} Rxh2 {[%emt 0:04:45]} 29. d7+ {[%emt 0:01:47]} Ka8 {[%emt 0:00:09]} 30. Kxh2 {[%emt 0:00:57]} Rh8+ {[%emt 0:00:53]} 31. Qh4 {[%emt 0:00:25]} 1-0

[Event "4NCL Div 1 2018-19"]
[Site "Telford"]
[Date "2019.02.10"]
[Round "6.26"]
[White "Szczepkowska, Karina"]
[Black "Rendle, Thomas E"]
[Result "1-0"]
[ECO "D38"]
[WhiteElo "2404"]
[BlackElo "2373"]
[Annotator "NA"]
[PlyCount "127"]
[EventDate "2018.11.10"]
[EventType "team-tourn"]
[EventCountry "GBR"]
[SourceTitle "playchess.com"]
[Source "ChessBase"]
[SourceQuality "1"]
[TimeControl "40/6000+30:3000+30"]

1. d4 {[%emt 0:00:55]} Nf6 {[%emt 0:00:42]} 2. c4 {[%emt 0:01:44]} e6 {[%emt 0:00:33]} 3. Nf3 {[%emt 0:00:23]} d5 {[%emt 0:00:12]} 4. Nc3 {[%emt 0:02:18]} Bb4 {[%emt 0:01:36]} 5. Qa4+ {[%emt 0:03:04]} Nc6 {[%emt 0:00:23]} 6. e3 {[%emt 0:00:13]} O-O {[%emt 0:03:46]} 7. Bd2 {[%emt 0:05:09]} Qe7 {[%emt 0:14:42]} 8. a3 {[%emt 0:08:48]} Bxc3 {[%emt 0:01:07]} 9. Bxc3 {[%emt 0:00:04]} Ne4 {[%emt 0:00:28]} 10. Qc2 {[%emt 0:02:20]} Re8 {[%emt 0:10:28]} 11. Rd1 {[%emt 0:07:09]} a6 {[%emt 0:17:51]} 12. Bd3 {[%emt 0:03:01]} Nxc3 {[%emt 0:05:30]} 13. Qxc3 {[%emt 0:01:42]} dxc4 {[%emt 0:00:35]} 14. Bxc4 {[%emt 0:04:36]} e5 {[%emt 0:10:18]} 15. Nxe5 {[%emt 0:09:33]} Nxe5 {[%emt 0:00:27]} 16. dxe5 {[%emt 0:00:03]} Bg4 {[%emt 0:05:54]} 17. Rd4 {[%emt 0:02:17]} Bh5 {[%emt 0:03:08]} 18. f4 {[%emt 0:09:41]} Qh4+ {[%emt 0:01:47]} 19. g3 {[%emt 0:00:56]} Qh3 {[%emt 0:00:17]} 20. Qd2 {[%emt 0:02:26]} Bf3 {[%emt 0:11:13]} 21. Rf1 {[%emt 0:05:30]} Bg4 {[%emt 0:00:33]} 22. f5 {[%emt 0:17:35]} Rxe5 {[%emt 0:07:13]} 23. Rd8+ {[%emt 0:05:51]} Re8 {[%emt 0:00:11]} 24. Bxf7+ {[%emt 0:00:24]} Kxf7 {[%emt 0:00:59]} 25. Qd7+ {[%emt 0:00:56]} Re7 {[%emt 0:00:50]} 26. Qd5+ {[%emt 0:00:10]} Kf6 {[%emt 0:00:08]} 27. Qd4+ {[%emt 0:01:44]} Kg5 {[%emt 0:00:33]} 28. Rxa8 {[%emt 0:06:41]} Qxh2 {[%emt 0:06:25]} 29. Qf4+ {[%emt 0:01:13]} Kh5 {[%emt 0:00:04]} 30. Qf2 {[%emt 0:00:10]} Qxf2+ {[%emt 0:00:12]} 31. Kxf2 {[%emt 0:02:17]} Bxf5 {[%emt 0:00:06]} 32. Rd8 {[%emt 0:02:03]} Bd7 {[%emt 0:03:59]} 33. Rh1+ {[%emt 0:00:17]} Kg6 {[%emt 0:00:04]} 34. Rh4 {[%emt 0:00:09]} h5 {[%emt 0:02:06]} 35. Rf4 {[%emt 0:01:31]} Bc6 {[%emt 0:01:05]} 36. Ke2 {[%emt 0:01:47]} Re5 {[%emt 0:00:10]} 37. Rdd4 {[%emt 0:02:22]} Rc5 {[%emt 0:00:25]} 38. Rd2 {[%emt 0:01:04]} Rc1 {[%emt 0:00:25]} 39. e4 {[%emt 0:00:14]} Kg5 {[%emt 0:00:59]} 40. Kf2 {[%emt 0:00:54]} Rh1 {[%emt 0:01:14]} 41. Re2 {[%emt 0:08:50]} Bb5 {[%emt 0:08:41]} 42. Kg2 {[%emt 0:00:17]} Rc1 {[%emt 0:00:37]} 43. Re3 {[%emt 0:03:28]} Bc6 {[%emt 0:00:34]} 44. Rc3 {[%emt 0:02:01]} Rd1 {[%emt 0:03:09]} 45. b4 {[%emt 0:01:31]} g6 {[%emt 0:06:43]} 46. Kf2 {[%emt 0:02:45]} Rd2+ {[%emt 0:03:18]} 47. Ke3 {[%emt 0:00:09]} Rg2 {[%emt 0:01:16]} 48. Kf3 {[%emt 0:01:07]} Rg1 {[%emt 0:01:48]} 49. Kf2 {[%emt 0:00:38]} Rh1 {[%emt 0:01:03]} 50. e5 {[%emt 0:05:45]} Rh2+ {[%emt 0:01:49]} 51. Ke1 {[%emt 0:00:21]} Rh1+ {[%emt 0:07:00]} 52. Kd2 {[%emt 0:05:01]} Rh2+ {[%emt 0:01:05]} 53. Ke3 {[%emt 0:04:57]} Rg2 {[%emt 0:07:30]} 54. Kd4 {[%emt 0:00:06]} Rxg3 {[%emt 0:09:23]} 55. Rxg3+ {[%emt 0:00:16]} Kxf4 {[%emt 0:00:07]} 56. Rxg6 {[%emt 0:00:04]} h4 {[%emt 0:00:11]} 57. Rxc6 {[%emt 0:03:33]} bxc6 {[%emt 0:00:07]} 58. e6 {[%emt 0:00:03]} h3 {[%emt 0:00:07]} 59. e7 {[%emt 0:00:02]} h2 {[%emt 0:00:04]} 60. e8=Q {[%emt 0:00:05]} h1=Q {[%emt 0:00:09]} 61. Qe5+ {[%emt 0:00:56]} Kg4 {[%emt 0:00:06]} 62. Qe4+ {[%emt 0:00:03]} Qxe4+ {[%emt 0:00:05]} 63. Kxe4 {[%emt 0:00:02]} Kg5 {[%emt 0:03:21]} 64. Ke5 {[%emt 0:00:31]} 1-0

[Event "4NCL Div 1 2018-19"]
[Site "Telford"]
[Date "2019.02.10"]
[Round "6.26"]
[White "Morrison, Graham"]
[Black "Coathup, Roger H"]
[Result "1/2-1/2"]
[ECO "E94"]
[WhiteElo "2300"]
[BlackElo "2162"]
[Annotator "NA"]
[PlyCount "53"]
[EventDate "2018.11.10"]
[EventType "team-tourn"]
[EventCountry "GBR"]
[SourceTitle "playchess.com"]
[Source "ChessBase"]
[SourceQuality "1"]
[TimeControl "40/6000+30:3000+30"]

1. d4 {[%emt 0:00:01]} Nf6 {[%emt 0:00:00]} 2. c4 {[%emt 0:00:00]} g6 {[%emt 0:00:00]} 3. Nc3 {[%emt 0:00:00]} Bg7 {[%emt 0:00:00]} 4. e4 {[%emt 0:00:12]} d6 {[%emt 0:00:00]} 5. Nf3 {[%emt 0:00:13]} O-O {[%emt 0:00:01]} 6. Be2 {[%emt 0:00:10]} c6 {[%emt 0:00:11]} 7. O-O {[%emt 0:00:56]} e5 {[%emt 0:00:21]} 8. d5 {[%emt 0:00:52]} Na6 {[%emt 0:00:36]} 9. Be3 {[%emt 0:01:12]} Ng4 {[%emt 0:00:38]} 10. Bg5 {[%emt 0:00:12]} f6 {[%emt 0:00:13]} 11. Bh4 {[%emt 0:00:24]} Nh6 {[%emt 0:04:41]} 12. c5 {[%emt 0:04:22]} Nxc5 {[%emt 0:18:01]} 13. b4 {[%emt 0:00:19]} g5 {[%emt 0:21:49]} 14. bxc5 {[%emt 0:04:57]} gxh4 {[%emt 0:00:05]} 15. dxc6 {[%emt 0:03:24]} bxc6 {[%emt 0:01:02]} 16. Qb3+ {[%emt 0:17:25]} Nf7 {[%emt 0:11:39]} 17. Rfd1 {[%emt 0:02:30]} Bd7 {[%emt 0:13:47]} 18. cxd6 {[%emt 0:08:05]} h3 {[%emt 0:05:29]} 19. g3 {[%emt 0:05:43]} Qb6 {[%emt 0:03:02]} 20. Qc4 {[%emt 0:05:41]} Rfb8 {[%emt 0:02:19]} 21. Nh4 {[%emt 0:11:25]} Qb4 {[%emt 0:03:29]} 22. a3 {[%emt 0:04:43]} Qxc4 {[%emt 0:04:29]} 23. Bxc4 {[%emt 0:00:11]} Bf8 {[%emt 0:01:26]} 24. Na4 {[%emt 0:06:46]} Rd8 {[%emt 0:02:22]} 25. Rd2 {[%emt 0:04:08]} Kg7 {[%emt 0:01:55]} 26. Bxf7 {[%emt 0:01:49]} Kxf7 {[%emt 0:00:09]} 27. f4 {[%emt 0:05:51]} 1/2-1/2

[Event "4NCL Div 1 2018-19"]
[Site "Telford"]
[Date "2019.02.10"]
[Round "6.27"]
[White "Daskalov, Dimitar"]
[Black "Reimanis, Ritvars"]
[Result "1/2-1/2"]
[ECO "B23"]
[WhiteElo "2330"]
[BlackElo "2324"]
[Annotator "NA"]
[PlyCount "92"]
[EventDate "2018.11.10"]
[EventType "team-tourn"]
[EventCountry "GBR"]
[SourceTitle "playchess.com"]
[Source "ChessBase"]
[SourceQuality "1"]
[TimeControl "40/6000+30:3000+30"]

1. e4 {[%emt 0:01:51]} c5 {[%emt 0:01:59]} 2. Nc3 {[%emt 0:01:32]} Nc6 {[%emt 0:00:04]} 3. Bb5 {[%emt 0:00:04]} g6 {[%emt 0:00:05]} 4. Bxc6 {[%emt 0:00:03]} bxc6 {[%emt 0:00:04]} 5. d3 {[%emt 0:00:05]} Bg7 {[%emt 0:00:05]} 6. f4 {[%emt 0:00:02]} d6 {[%emt 0:00:33]} 7. h3 {[%emt 0:02:19]} Nh6 {[%emt 0:19:15]} 8. Nf3 {[%emt 0:06:21]} Qb6 {[%emt 0:02:22]} 9. O-O {[%emt 0:03:56]} f6 {[%emt 0:17:29]} 10. Na4 {[%emt 0:08:09]} Qc7 {[%emt 0:03:25]} 11. c4 {[%emt 0:00:15]} Nf7 {[%emt 0:00:57]} 12. Qe1 {[%emt 0:04:12]} O-O {[%emt 0:06:33]} 13. Nc3 {[%emt 0:08:12]} f5 {[%emt 0:09:59]} 14. Kh1 {[%emt 0:23:10]} e5 {[%emt 0:07:59]} 15. fxe5 {[%emt 0:02:36]} Nxe5 {[%emt 0:00:07]} 16. Nxe5 {[%emt 0:00:08]} Bxe5 {[%emt 0:00:05]} 17. Bf4 {[%emt 0:00:55]} Bxf4 {[%emt 0:03:55]} 18. Rxf4 {[%emt 0:00:40]} g5 {[%emt 0:09:13]} 19. Rf3 {[%emt 0:06:02]} f4 {[%emt 0:00:29]} 20. Qd2 {[%emt 0:10:25]} Qg7 {[%emt 0:00:35]} 21. Raf1 {[%emt 0:06:52]} Be6 {[%emt 0:01:51]} 22. Kg1 {[%emt 0:04:21]} Rab8 {[%emt 0:00:38]} 23. b3 {[%emt 0:02:16]} Rbd8 {[%emt 0:02:54]} 24. Qe1 {[%emt 0:07:41]} Rde8 {[%emt 0:03:30]} 25. Qc1 {[%emt 0:02:49]} Bf7 {[%emt 0:05:14]} 26. R3f2 {[%emt 0:03:12]} Bh5 {[%emt 0:05:59]} 27. Nb1 {[%emt 0:01:26]} Qd4 {[%emt 0:04:48]} 28. Qc3 {[%emt 0:00:41]} d5 {[%emt 0:00:11]} 29. Qxd4 {[%emt 0:02:08]} cxd4 {[%emt 0:00:01]} 30. Nd2 {[%emt 0:00:48]} Bg6 {[%emt 0:01:47]} 31. cxd5 {[%emt 0:00:09]} cxd5 {[%emt 0:00:04]} 32. Nf3 {[%emt 0:00:26]} dxe4 {[%emt 0:00:31]} 33. dxe4 {[%emt 0:00:04]} h6 {[%emt 0:00:16]} 34. Nxd4 {[%emt 0:01:57]} Rxe4 {[%emt 0:00:01]} 35. Ne2 {[%emt 0:00:40]} Rc8 {[%emt 0:00:17]} 36. Rd1 {[%emt 0:00:44]} a5 {[%emt 0:02:50]} 37. Rd6 {[%emt 0:00:30]} Kf7 {[%emt 0:01:39]} 38. Nd4 {[%emt 0:00:39]} a4 {[%emt 0:00:34]} 39. bxa4 {[%emt 0:00:34]} Rc4 {[%emt 0:00:00]} 40. Rd2 {[%emt 0:00:11]} Rc1+ {[%emt 0:01:05]} 41. Kf2 {[%emt 0:01:56]} Ree1 {[%emt 0:12:03]} 42. Nf3 {[%emt 0:00:48]} Rf1+ {[%emt 0:01:18]} 43. Ke2 {[%emt 0:00:04]} Bh5 {[%emt 0:00:09]} 44. Rxh6 {[%emt 0:09:27]} Rfe1+ {[%emt 0:01:15]} 45. Kf2 {[%emt 0:05:31]} Rf1+ {[%emt 0:00:18]} 46. Ke2 {[%emt 0:00:04]} Rfe1+ {[%emt 0:00:04]} 1/2-1/2

[Event "4NCL Div 1 2018-19"]
[Site "Telford"]
[Date "2019.02.10"]
[Round "6.27"]
[White "Mueller, Constantin"]
[Black "Gourlay, Iain"]
[Result "1/2-1/2"]
[ECO "E01"]
[WhiteElo "2276"]
[BlackElo "2358"]
[Annotator "NA"]
[PlyCount "48"]
[EventDate "2018.11.10"]
[EventType "team-tourn"]
[EventCountry "GBR"]
[SourceTitle "playchess.com"]
[Source "ChessBase"]
[SourceQuality "1"]
[TimeControl "40/6000+30:3000+30"]

1. d4 {[%emt 0:00:36]} d5 {[%emt 0:08:47]} 2. c4 {[%emt 0:00:10]} e6 {[%emt 0:00:31]} 3. Nf3 {[%emt 0:00:09]} Nf6 {[%emt 0:00:37]} 4. g3 {[%emt 0:00:14]} Bb4+ {[%emt 0:00:28]} 5. Bd2 {[%emt 0:00:09]} Bd6 {[%emt 0:00:33]} 6. Nc3 {[%emt 0:01:17]} c6 {[%emt 0:06:52]} 7. Bg5 {[%emt 0:05:23]} Nbd7 {[%emt 0:08:51]} 8. e4 {[%emt 0:00:42]} dxe4 {[%emt 0:01:12]} 9. Nxe4 {[%emt 0:00:13]} Bb4+ {[%emt 0:01:44]} 10. Bd2 {[%emt 0:00:27]} Be7 {[%emt 0:05:55]} 11. Nxf6+ {[%emt 0:00:31]} Nxf6 {[%emt 0:09:11]} 12. c5 {[%emt 0:02:03]} e5 {[%emt 0:11:37]} 13. dxe5 {[%emt 0:00:24]} Ne4 {[%emt 0:01:45]} 14. Bb4 {[%emt 0:08:50]} Bg4 {[%emt 0:03:33]} 15. Bg2 {[%emt 0:02:37]} a5 {[%emt 0:18:14]} 16. Ba3 {[%emt 0:01:30]} Bxc5 {[%emt 0:05:34]} 17. Bxc5 {[%emt 0:00:10]} Nxc5 {[%emt 0:02:17]} 18. O-O {[%emt 0:00:19]} Qd3 {[%emt 0:01:07]} 19. Qc1 {[%emt 0:04:01]} Ne6 {[%emt 0:02:27]} 20. Ng5 {[%emt 0:03:37]} Nxg5 {[%emt 0:06:21]} 21. Qxg5 {[%emt 0:00:13]} Qg6 {[%emt 0:00:16]} 22. Qh4 {[%emt 0:02:46]} Qh5 {[%emt 0:01:42]} 23. Qxh5 {[%emt 0:01:19]} Bxh5 {[%emt 0:00:05]} 24. h3 {[%emt 0:00:34]} Ke7 {[%emt 0:01:21]} 1/2-1/2

[Event "4NCL Div 1 2018-19"]
[Site "Telford"]
[Date "2019.02.10"]
[Round "6.28"]
[White "Sreeves, Clement"]
[Black "Taylor, Adam A"]
[Result "1-0"]
[ECO "B32"]
[WhiteElo "2358"]
[BlackElo "2222"]
[Annotator "NA"]
[PlyCount "74"]
[EventDate "2018.11.10"]
[EventType "team-tourn"]
[EventCountry "GBR"]
[SourceTitle "playchess.com"]
[Source "ChessBase"]
[SourceQuality "1"]
[TimeControl "40/6000+30:3000+30"]

1. e4 {[%emt 0:00:00]} c5 {[%emt 0:02:27]} 2. Nf3 {[%emt 0:00:00]} Nc6 {[%emt 0:00:04]} 3. d4 {[%emt 0:00:00]} cxd4 {[%emt 0:00:05]} 4. Nxd4 {[%emt 0:00:00]} e5 {[%emt 0:00:28]} 5. Nb5 {[%emt 0:00:20]} d6 {[%emt 0:00:03]} 6. N1c3 {[%emt 0:00:24]} a6 {[%emt 0:00:07]} 7. Na3 {[%emt 0:00:10]} b5 {[%emt 0:00:11]} 8. Nd5 {[%emt 0:00:17]} Nge7 {[%emt 0:00:07]} 9. c4 {[%emt 0:00:30]} Nd4 {[%emt 0:00:25]} 10. Bd3 {[%emt 0:00:45]} Nxd5 {[%emt 0:01:41]} 11. cxd5 {[%emt 0:00:10]} Be7 {[%emt 0:02:28]} 12. O-O {[%emt 0:00:45]} O-O {[%emt 0:00:28]} 13. Be3 {[%emt 0:01:18]} Bd7 {[%emt 0:15:18]} 14. Qd2 {[%emt 0:04:45]} Rc8 {[%emt 0:05:19]} 15. f4 {[%emt 0:03:21]} Bf6 {[%emt 0:05:09]} 16. Kh1 {[%emt 0:18:41]} g6 {[%emt 0:14:07]} 17. Qb4 {[%emt 0:37:42]} Qe7 {[%emt 0:22:15]} 18. Rf2 {[%emt 0:01:11]} Rce8 {[%emt 0:20:38]} 19. Rc1 {[%emt 0:10:25]} Bg7 {[%emt 0:03:09]} 20. fxe5 {[%emt 0:01:07]} Bxe5 {[%emt 0:01:55]} 21. Bb1 {[%emt 0:16:32]} Qh4 {[%emt 0:10:04]} 22. g3 {[%emt 0:00:41]} Bxg3 {[%emt 0:00:03]} 23. Qxd4 {[%emt 0:00:27]} Bg4 {[%emt 0:01:47]} 24. Kg1 {[%emt 0:05:28]} Bxf2+ {[%emt 0:02:57]} 25. Bxf2 {[%emt 0:00:02]} Qh3 {[%emt 0:00:37]} 26. Rc3 {[%emt 0:05:43]} Bf3 {[%emt 0:00:31]} 27. Rxf3 {[%emt 0:00:02]} Qxf3 {[%emt 0:00:04]} 28. Qe3 {[%emt 0:00:45]} Qd1+ {[%emt 0:00:10]} 29. Qe1 {[%emt 0:00:03]} Qg4+ {[%emt 0:00:23]} 30. Bg3 {[%emt 0:00:01]} f5 {[%emt 0:00:14]} 31. h3 {[%emt 0:01:52]} Qg5 {[%emt 0:01:08]} 32. Kh1 {[%emt 0:00:10]} fxe4 {[%emt 0:00:41]} 33. Nc2 {[%emt 0:00:44]} e3 {[%emt 0:00:29]} 34. Kh2 {[%emt 0:00:34]} e2 {[%emt 0:00:25]} 35. Qc3 {[%emt 0:01:15]} Qxd5 {[%emt 0:01:00]} 36. Ne3 {[%emt 0:00:45]} Qf3 {[%emt 0:00:31]} 37. Qb3+ {[%emt 0:01:03]} Rf7 {[%emt 0:00:00]} 1-0

[Event "4NCL Div 1 2018-19"]
[Site "Telford"]
[Date "2019.02.10"]
[Round "6.28"]
[White "Maurizzi, Marc Andria"]
[Black "Smith, Murray"]
[Result "1-0"]
[ECO "B12"]
[WhiteElo "2268"]
[BlackElo "2190"]
[Annotator "NA"]
[PlyCount "83"]
[EventDate "2018.11.10"]
[EventType "team-tourn"]
[EventCountry "GBR"]
[SourceTitle "playchess.com"]
[Source "ChessBase"]
[SourceQuality "1"]
[TimeControl "40/6000+30:3000+30"]

1. e4 {[%emt 0:00:00]} c6 {[%emt 0:00:03]} 2. d4 {[%emt 0:00:14]} d5 {[%emt 0:00:04]} 3. e5 {[%emt 0:00:16]} c5 {[%emt 0:00:47]} 4. dxc5 {[%emt 0:00:20]} Nc6 {[%emt 0:00:24]} 5. a3 {[%emt 0:00:18]} Nxe5 {[%emt 0:05:09]} 6. b4 {[%emt 0:00:10]} Nf6 {[%emt 0:03:40]} 7. Bb2 {[%emt 0:00:26]} Ned7 {[%emt 0:18:13]} 8. Nf3 {[%emt 0:02:24]} e6 {[%emt 0:01:06]} 9. c4 {[%emt 0:01:51]} dxc4 {[%emt 0:07:09]} 10. Bxc4 {[%emt 0:03:14]} Be7 {[%emt 0:00:05]} 11. O-O {[%emt 0:00:34]} O-O {[%emt 0:00:08]} 12. Nc3 {[%emt 0:01:54]} a6 {[%emt 0:01:22]} 13. Qe2 {[%emt 0:14:43]} h6 {[%emt 0:10:18]} 14. Rfe1 {[%emt 0:11:51]} Re8 {[%emt 0:09:14]} 15. Rac1 {[%emt 0:05:52]} Bf8 {[%emt 0:07:59]} 16. Nd2 {[%emt 0:09:15]} Qc7 {[%emt 0:10:20]} 17. Nce4 {[%emt 0:04:37]} Be7 {[%emt 0:01:24]} 18. Nxf6+ {[%emt 0:08:18]} Nxf6 {[%emt 0:02:18]} 19. Ne4 {[%emt 0:00:17]} Nxe4 20. Qxe4 {[%emt 0:00:02]} Qc6 {[%emt 0:08:23]} 21. Qe3 {[%emt 0:06:28]} Bd7 {[%emt 0:02:02]} 22. Qg3 {[%emt 0:01:57]} Bf8 {[%emt 0:00:18]} 23. Rcd1 {[%emt 0:01:31]} Qc8 {[%emt 0:01:40]} 24. Re4 {[%emt 0:01:26]} Bb5 {[%emt 0:08:46]} 25. Bxg7 {[%emt 0:03:41]} Bxg7 {[%emt 0:01:35]} 26. Rg4 {[%emt 0:01:01]} Rd8 {[%emt 0:03:30]} 27. Rxg7+ {[%emt 0:03:06]} Kh8 {[%emt 0:00:09]} 28. Bd3 {[%emt 0:15:39]} Rxd3 {[%emt 0:02:14]} 29. Rxd3 {[%emt 0:00:11]} Qf8 {[%emt 0:00:15]} 30. Rg4 {[%emt 0:01:48]} Bxd3 {[%emt 0:00:34]} 31. Qxd3 {[%emt 0:00:30]} Rd8 {[%emt 0:00:27]} 32. Rd4 {[%emt 0:01:16]} Rxd4 {[%emt 0:00:23]} 33. Qxd4+ {[%emt 0:00:01]} Kg8 {[%emt 0:00:53]} 34. Qd7 {[%emt 0:00:37]} Qb8 {[%emt 0:03:10]} 35. g3 {[%emt 0:00:13]} Kg7 {[%emt 0:00:44]} 36. a4 {[%emt 0:00:52]} a5 {[%emt 0:02:01]} 37. b5 {[%emt 0:00:22]} Qe5 {[%emt 0:00:13]} 38. Qxb7 {[%emt 0:00:26]} Qxc5 {[%emt 0:00:07]} 39. Qc6 {[%emt 0:00:27]} Qb4 {[%emt 0:00:44]} 40. b6 {[%emt 0:00:23]} Kf6 {[%emt 0:00:21]} 41. b7 {[%emt 0:51:10]} h5 {[%emt 0:06:21]} 42. h4 {[%emt 0:00:00]} 1-0

[Event "4NCL Div 1 2018-19"]
[Site "Telford"]
[Date "2019.02.10"]
[Round "6.29"]
[White "Holland, James P"]
[Black "Kulon, Klaudia"]
[Result "1-0"]
[ECO "C48"]
[WhiteElo "2260"]
[BlackElo "2327"]
[Annotator "NA"]
[PlyCount "67"]
[EventDate "2018.11.10"]
[EventType "team-tourn"]
[EventCountry "GBR"]
[SourceTitle "playchess.com"]
[Source "ChessBase"]
[SourceQuality "1"]
[TimeControl "40/6000+30:3000+30"]

1. e4 {[%emt 0:00:00]} e5 {[%emt 0:00:48]} 2. Nf3 {[%emt 0:00:00]} Nc6 {[%emt 0:00:19]} 3. Nc3 {[%emt 0:00:00]} Nf6 {[%emt 0:00:11]} 4. Bb5 {[%emt 0:00:00]} Bd6 {[%emt 0:00:05]} 5. a3 {[%emt 0:00:19]} O-O {[%emt 0:00:45]} 6. d3 {[%emt 0:02:37]} h6 {[%emt 0:00:04]} 7. Bc4 {[%emt 0:11:01]} Re8 {[%emt 0:05:20]} 8. g4 {[%emt 0:05:25]} Nh7 {[%emt 0:21:02]} 9. g5 {[%emt 0:15:26]} hxg5 {[%emt 0:03:06]} 10. Rg1 {[%emt 0:00:57]} Be7 {[%emt 0:01:41]} 11. Nd5 {[%emt 0:30:06]} g4 {[%emt 0:06:26]} 12. Rxg4 {[%emt 0:04:16]} d6 {[%emt 0:00:12]} 13. Rg3 {[%emt 0:02:31]} Be6 {[%emt 0:01:30]} 14. Bh6 {[%emt 0:01:50]} g6 {[%emt 0:08:06]} 15. Nxc7 {[%emt 0:09:51]} Qxc7 {[%emt 0:04:07]} 16. Bxe6 {[%emt 0:00:05]} fxe6 {[%emt 0:00:04]} 17. Rxg6+ {[%emt 0:00:08]} Kh8 {[%emt 0:00:05]} 18. Bg7+ {[%emt 0:00:14]} Kg8 {[%emt 0:00:06]} 19. Bxe5+ {[%emt 0:02:29]} Kf8 {[%emt 0:06:19]} 20. Qd2 {[%emt 0:10:47]} Bg5 {[%emt 0:08:19]} 21. Nxg5 {[%emt 0:04:08]} dxe5 {[%emt 0:04:18]} 22. Nxe6+ {[%emt 0:00:11]} Rxe6 {[%emt 0:00:06]} 23. Qh6+ {[%emt 0:00:05]} Ke8 {[%emt 0:00:33]} 24. Rxe6+ {[%emt 0:00:37]} Kd8 {[%emt 0:00:04]} 25. Rd6+ {[%emt 0:00:37]} Ke8 {[%emt 0:02:32]} 26. Re6+ {[%emt 0:00:32]} Kd8 {[%emt 0:00:04]} 27. Rg6 {[%emt 0:01:08]} Ne7 {[%emt 0:01:33]} 28. Qxh7 {[%emt 0:00:47]} Nxg6 {[%emt 0:00:12]} 29. Qg8+ {[%emt 0:00:57]} Ke7 {[%emt 0:01:38]} 30. Qxa8 {[%emt 0:00:25]} Qxc2 {[%emt 0:00:25]} 31. Qxb7+ {[%emt 0:00:11]} Kf6 {[%emt 0:00:55]} 32. Qa6+ {[%emt 0:00:20]} Kg5 {[%emt 0:00:20]} 33. Qc4 {[%emt 0:00:13]} Qxb2 {[%emt 0:00:23]} 34. Qc1+ {[%emt 0:00:03]} 1-0